lending/lending_fUSD_20250411
["ID","MTS","AMOUNT","RATE_DAILY","PERIOD"]
[357712612,1744377038232,-1911.86871899,0.00019123,2]
[357712613,1744377038243,-10300.79499691,0.00019123,2]
[357712614,1744377038254,-1383.5,0.00019155,2]
[357712615,1744377038264,-200.0,0.0001937,2]
[357712616,1744377038274,-10788.89,0.00019528,2]
[357712617,1744377038284,-167.35,0.00019529,2]
[357712618,1744377038295,-1000.0,0.00019602,2]
[357712619,1744377038306,-653.81,0.00019793,2]
[357712620,1744377038316,-250.0,0.000199,2]
[357712621,1744377038326,-350.46875124,0.000199,2]
[357712622,1744377038337,-1371.4725,0.000199,2]
[357712623,1744377038347,-1969.2231528,0.000199,2]
[357712624,1744377038357,-1500.0,0.000199,2]
[357712625,1744377038367,-5081.93944619,0.000199,2]
[357712626,1744377038377,-380.75859125,0.000199,2]
[357712627,1744377038394,-865.2806,0.000199,2]
[357712628,1744377038405,-182.49597087,0.000199,2]
[357712629,1744377038416,-663.8652,0.000199,2]
[357712630,1744377038426,-158.05148307,0.000199,3]
[357712631,1744377038437,-559.7796064,0.000199,2]
[357712632,1744377038447,-250.0,0.00019952,2]
[357712633,1744377038458,-608.78042851,0.00019973,2]
[357712634,1744377038469,-2499.0,0.00019973,2]
[357712635,1744377038478,-500.0,0.00019973,2]
[357712636,1744377038488,-500.0,0.00019973,2]
[357712637,1744377038498,-500.0,0.00019973,2]
[357712638,1744377038508,-506.80863295,0.00019973,2]
[357712639,1744377038518,-363.63512475,0.00019973,2]
[357712640,1744377038528,-500.0,0.00019973,2]
[357712641,1744377038539,-2396.79,0.00019986,2]
[357712642,1744377038548,-174.912,0.00019986,2]
[357712643,1744377038558,-1397.7257851,0.00019986,2]
[357712644,1744377038567,-34822.9667002,0.00019986,2]
[357712646,1744377038577,-5861.2349647,0.00019986,2]
[357712648,1744377038587,-1465.3884963,0.00019986,2]
[357712650,1744377038596,-841.90366325,0.00019986,2]
[357712652,1744377038605,-4030.7503196,0.00019986,2]
[357712654,1744377038615,-280.6345543,0.00019986,2]
[357712656,1744377038625,-172.1980056,0.00019986,2]
[357712658,1744377038636,-9947.1146194,0.00019986,2]
[357712660,1744377038646,-1011.6525595,0.00019986,2]
[357712663,1744377038655,-164.16,0.0001999,2]
[357712666,1744377038665,-164.16,0.0001999,2]
[357712669,1744377038674,-164.16,0.0001999,2]
[357712671,1744377038684,-151.0,0.00019999,2]
[357712674,1744377038693,-1117.87658047,0.00019999,5]
[357712675,1744377038703,-1579202.73095328,0.0002,2]
[357712678,1744377038715,-340033.78431041,0.0002,2]
[357712680,1744377038730,-1563.46598488,0.0002,2]
[357712719,1744377040072,-151.0,0.00019999,2]
[357712720,1744377040082,-373.66724061,0.0002,2]
[357712721,1744377040131,-739.270795,0.0002,2]
[357712722,1744377040244,-16720.571917,0.0002,2]
[357712739,1744377046528,-39439.97644192,0.0002,2]
[357712745,1744377046590,-914.64396468,0.0002,2]
[357712746,1744377046602,-453.0,0.0002,2]
[357712747,1744377046615,-480.5472596,0.0002,2]
[357712748,1744377051294,350.0,0.00033,120]
[357712749,1744377203401,500.0,0.00033,120]
[357712750,1744377207565,2038.25822,0.00033,120]
[357712751,1744377210363,500.0,0.00033,120]
[357712752,1744377314286,161.28,0.00015321,2]
[357712753,1744377367978,150.0,7.945e-05,2]
[357712754,1744377439004,167.9,0.00028617,120]
[357712755,1744377571047,1000.0,0.00033,120]
[357712756,1744377599916,609.81,0.00027425,30]
[357712757,1744377716349,1000.0,0.00033,120]
[357712758,1744377806846,642.304509,0.00033,120]
[357712759,1744377813187,200.0,0.00010959,2]
[357712760,1744377816498,200.0,0.00010959,2]
[357712761,1744377928998,1650.39820993,0.00011,2]
[357712764,1744378126387,1638.32179007,0.000151,2]
[357712765,1744378126413,10000.0,0.000151,2]
[357712766,1744378126434,10000.0,0.000151,2]
[357712767,1744378126456,381.17820893,0.000151,2]
[357712770,1744378131559,9618.82179107,0.00013368,2]
[357712771,1744378131579,10000.0,0.00013368,2]
[357712772,1744378131600,10000.0,0.00013368,2]
[357712773,1744378131622,10000.0,0.00013368,2]
[357712774,1744378131643,2861.75662855,0.00013368,2]
[357712780,1744378232045,-415.51151533,0.00017504,2]
[357712888,1744378237778,-730.10848467,0.00017504,2]
[357712889,1744378237788,-250.0,0.00018327,2]
[357712890,1744378237797,-200.0,0.00018542,2]
[357712891,1744378237806,-47.25551533,0.00018554,2]
[357712892,1744378237858,-468.71448467,0.00018554,2]
[357712893,1744378237868,-250.0,0.00018586,2]
[357712894,1744378237877,-200.0,0.00018683,7]
[357712895,1744378237887,-251.45,0.00018827,2]
[357712896,1744378237896,-246.12,0.00018841,2]
[357712897,1744378237906,-801.38,0.00018915,2]
[357712898,1744378237915,-189.69943696,0.00018915,2]
[357712899,1744378237927,-1368.23056304,0.00018915,2]
[357712900,1744378237937,-1000.0,0.00018916,2]
[357712901,1744378237946,-175.1347804,0.00019,2]
[357712902,1744378237956,-3295.74719696,0.00019,2]
[357712903,1744378238076,-3563.53033183,0.00019,2]
[357712904,1744378238091,-800.0,0.00019,2]
[357712909,1744378239542,-1357.36621302,0.00019,2]
[357712910,1744378239580,-1557.89999997,0.00019,2]
[357712911,1744378239592,-4253.6805989,0.00019,2]
[357712912,1744378239603,-3714.95526619,0.00019,2]
[357712913,1744378239612,-250.0,0.00019,2]
[357712914,1744378239622,-284.91728974,0.00019033,2]
[357712915,1744378239631,-4105.58919507,0.00019034,2]
[357712916,1744378239644,-10506.34515768,0.00019034,2]
[357712917,1744378239656,-7781.0000001,0.00019034,2]
[357712918,1744378239668,-1507.06564715,0.00019034,2]
[357712919,1744378239678,-216.96493325,0.00019034,2]
[357712920,1744378239688,-167.9,0.00019078,2]
[357712921,1744378239698,-1101.26,0.00019105,2]
[357712922,1744378239708,-653.81,0.00019151,2]
[357712923,1744378239718,-244.38,0.00019199,2]
[357712924,1744378239728,-11593.69,0.00019208,2]
[357712925,1744378239739,-250.0,0.00019254,2]
[357712926,1744378239749,-250.0,0.00019254,2]
[357712927,1744378239759,-166.66,0.00019296,2]
[357712928,1744378239769,-436.28870307,0.00019319,2]
[357712929,1744378239778,-150.0,0.00019449,2]
[357712930,1744378239788,-436.28870307,0.00019684,2]
[357712931,1744378239798,-1145.62,0.00019768,2]
[357712932,1744378239808,-436.28870307,0.00019861,2]
[357712933,1744378239818,-300.0,0.00019862,2]
[357712934,1744378239827,-1371.4725,0.000199,2]
[357712935,1744378239837,-408.88020981,0.000199,2]
[357712936,1744378239846,-865.2806,0.000199,2]
[357712937,1744378239855,-1969.2231528,0.000199,2]
[357712938,1744378239865,-364.99194173,0.000199,2]
[357712939,1744378239874,-663.8652,0.000199,2]
[357712940,1744378239884,-170.39044802,0.000199,2]
[357712941,1744378239893,-8445.53270536,0.000199,2]
[357712942,1744378239904,-158.05148307,0.000199,3]
[357712943,1744378239913,-994.83583224,0.000199,2]
[357712944,1744378239922,-559.7796064,0.000199,2]
[357712945,1744378239931,-2499.0,0.00019973,2]
[357712946,1744378239941,-506.80863295,0.00019973,2]
[357712947,1744378239951,-500.0,0.00019973,2]
[357712948,1744378239962,-363.63512475,0.00019973,2]
[357712949,1744378239972,-500.0,0.00019973,2]
[357712950,1744378239982,-500.0,0.00019973,2]
[357712951,1744378239991,-500.0,0.00019973,2]
[357712952,1744378240001,-2396.79,0.00019986,2]
[357712953,1744378240011,-174.912,0.00019986,2]
[357712954,1744378240021,-1176.6061341,0.00019986,2]
[357712955,1744378240031,-21258.6020576,0.00019986,2]
[357712956,1744378240042,-401.0260921,0.00019986,2]
[357712957,1744378240052,-16176.9062777,0.00019986,2]
[357712959,1744378240279,-1170.5400192,0.00019986,2]
[357712960,1744378240304,-586.7959566,0.00019986,2]
[357712961,1744378240314,-281.38291325,0.00019986,2]
[357712962,1744378240324,-164.16,0.0001999,2]
[357712963,1744378240334,-164.16,0.0001999,2]
[357712964,1744378240344,-164.16,0.0001999,2]
[357712965,1744378240354,-1000.0,0.00019999,2]
[357712966,1744378240364,-151.0,0.00019999,2]
[357712967,1744378240374,-1117.87658047,0.00019999,5]
[357712968,1744378240384,-5847.89672155,0.00019999,2]
[357712969,1744378240394,-150.0,0.00019999,2]
[357712970,1744378240403,-150.0,0.00019999,2]
[357712971,1744378240412,-150.0,0.00019999,2]
[357712972,1744378240422,-150.0,0.00019999,2]
[357712973,1744378240431,-150.0,0.00019999,2]
[357712974,1744378240441,-150.0,0.00019999,2]
[357712975,1744378240450,-150.0,0.00019999,2]
[357712976,1744378240461,-155.45592761,0.00019999,2]
[357712977,1744378240470,-1704757.43647043,0.0002,2]
[357712978,1744378240482,-340033.78431041,0.0002,2]
[357712980,1744378241585,-790.85160211,0.0002,2]
[357712981,1744378241598,-1641.25,0.0002,2]
[357712982,1744378241609,-2207.88609006,0.0002,2]
[357712985,1744378243074,-66657.64910273,0.0002,2]
[357712986,1744378243086,-25186.3396482,0.0002,2]
[357712997,1744378246247,-820.8051808,0.0002,2]
[357712998,1744378246259,-1201.02256041,0.0002,2]
[357712999,1744378246271,-4103.65,0.0002,2]
[357713031,1744378449522,-1031.05,0.0001789,2]
[357713032,1744378636879,569.15,0.00027425,30]
[357713033,1744379013420,200.0,0.00017747,2]
[357713091,1744379433045,-257.98,0.00018976,2]
[357713092,1744379433055,-68.31134845,0.00018976,2]
[357713093,1744379433241,-181.68865155,0.00018976,2]
[357713094,1744379433251,-280.31628843,0.00019,2]
[357713095,1744379433264,-302.0,0.00019,2]
[357713096,1744379433511,-893.35371157,0.00019,2]
[357713097,1744379433521,-519.31,0.00019,2]
[357713098,1744379433531,-410.2933,0.00019039,2]
[357713099,1744379433541,-1407.05,0.00019051,2]
[357713100,1744379433550,-199.66,0.00019096,2]
[357713101,1744379433560,-200.0,0.00019114,7]
[357713102,1744379433571,-523.12198843,0.00019139,2]
[357713103,1744379433941,-1043.81180349,0.00019139,2]
[357713109,1744379438260,-659.66256401,0.00019139,2]
[357713110,1744379438376,-20508.76364407,0.00019139,2]
[357713111,1744379438387,-155.15,0.00019229,2]
[357713112,1744379438397,-1000.0,0.00019254,2]
[357713113,1744379438406,-1000.0,0.00019293,2]
[357713114,1744379438415,-10788.89,0.00019294,2]
[357713115,1744379438425,-2033.75,0.00019294,2]
[357713116,1744379438434,-436.28870307,0.00019464,2]
[357713117,1744379438444,-166.67,0.00019688,2]
[357713118,1744379438454,-436.28870307,0.00019829,2]
[357713119,1744379438463,-1000.0,0.00019899,2]
[357713120,1744379438474,-1903.79295625,0.000199,2]
[357713121,1744379438483,-1371.4725,0.000199,2]
[357713122,1744379438492,-408.88020981,0.000199,2]
[357713123,1744379438502,-1969.2231528,0.000199,2]
[357713124,1744379438511,-5718.00489089,0.000199,2]
[357713125,1744379438520,-158.05148307,0.000199,3]
[357713126,1744379438530,-170.39044802,0.000199,2]
[357713127,1744379438539,-364.99194173,0.000199,2]
[357713128,1744379438548,-208.12486476,0.000199,2]
[357713129,1744379438558,-8445.53270536,0.000199,2]
[357713130,1744379438567,-559.7796064,0.000199,2]
[357713131,1744379438580,-2499.0,0.00019973,2]
[357713132,1744379438589,-506.80863295,0.00019973,2]
[357713133,1744379438599,-500.0,0.00019973,2]
[357713134,1744379438608,-500.0,0.00019973,2]
[357713135,1744379438619,-500.0,0.00019973,2]
[357713136,1744379438628,-500.0,0.00019973,2]
[357713137,1744379438638,-2396.79,0.00019986,2]
[357713138,1744379438648,-174.912,0.00019986,2]
[357713139,1744379438658,-2159.3096027,0.00019986,2]
[357713141,1744379438669,-36929.6230875,0.00019986,2]
[357713143,1744379438678,-1044.4416535,0.00019986,2]
[357713145,1744379438687,-154.49060576,0.0001999,2]
[357713146,1744379438697,-154.49060576,0.0001999,2]
[357713147,1744379438706,-154.49060576,0.0001999,2]
[357713148,1744379438715,-151.0,0.00019999,2]
[357713149,1744379438726,-1117.87658047,0.00019999,5]
[357713150,1744379438735,-1117.87658046,0.00019999,5]
[357713151,1744379438745,-150.0,0.00019999,2]
[357713153,1744379438754,-150.0,0.00019999,2]
[357713154,1744379438764,-150.0,0.00019999,2]
[357713155,1744379438773,-150.0,0.00019999,2]
[357713156,1744379438782,-150.0,0.00019999,2]
[357713157,1744379438791,-150.0,0.00019999,2]
[357713158,1744379438800,-150.0,0.00019999,2]
[357713159,1744379438810,-155.45592761,0.00019999,2]
[357713160,1744379438819,-1821734.44661171,0.0002,2]
[357713161,1744379438831,-340033.78431041,0.0002,2]
[357713162,1744379438842,-446.81337876,0.0002,2]
[357713163,1744379438903,-401.25738275,0.0002,2]
[357713164,1744379438914,-632.29697555,0.0002,2]
[357713165,1744379438925,-2632.71216969,0.0002,2]
[357713166,1744379438960,-817.84355093,0.0002,2]
[357713178,1744379440438,-1500.0,0.0002,2]
[357713179,1744379440537,-498.77595523,0.0002,2]
[357713180,1744379440953,-412.09622763,0.0002,2]
[357713181,1744379440969,-22195.28831091,0.0002,2]
[357713182,1744379440985,-41573.3049,0.0002,2]
[357713199,1744379445848,-5641.32078583,0.0002,2]
[357713200,1744379445977,-32038.72217744,0.0002,2]
[357713202,1744379446040,-3299.2972782,0.0002,2]
[357713210,1744379448474,-3793.2,0.0002,2]
[357713211,1744379448585,-9706.63699029,0.0002,2]
[357713212,1744379448679,-1407.63971671,0.0002,2]
[357713215,1744379487376,1036.78,0.00017927,2]
[357713216,1744379602552,500.0,0.00033,120]
[357713217,1744379614444,200.0,0.00017784,2]
[357713218,1744379671079,531.2,0.00027425,30]
[357713219,1744379888442,2980.744957,7.945e-05,2]
[357713220,1744379947921,885.688294,7.945e-05,2]
[357713222,1744380139252,-200.0,0.00018971,7]
[357713223,1744380140997,-175.55755143,0.00019,2]
[357713224,1744380144246,-74.44244857,0.00019,2]
[357713225,1744380144279,-1000.0,0.0001918,2]
[357713226,1744380144312,-200.0,0.000193,7]
[357713227,1744380144346,-167.9,0.00019353,2]
[357713228,1744380144380,-381.7231778,0.00019399,2]
[357713229,1744380144414,-500.0,0.000194,7]
[357713230,1744380144448,-436.28870307,0.00019465,2]
[357713231,1744380144481,-800.0,0.000195,7]
[357713232,1744380144512,-166.67,0.00019554,2]
[357713233,1744380144545,-150.0,0.00019564,2]
[357713234,1744380144579,-1100.0,0.000196,7]
[357713235,1744380144612,-1400.0,0.000197,7]
[357713236,1744380144645,-200.0,0.000198,7]
[357713237,1744380144680,-436.28870307,0.00019811,2]
[357713238,1744380144718,-260.0,0.000199,2]
[357713239,1744380144749,-572.5334,0.000199,2]
[357713240,1744380144782,-2658.49240602,0.000199,2]
[357713241,1744380145079,-17890.4878,0.000199,2]
[357713242,1744380145126,-663.8652,0.000199,2]
[357713243,1744380145161,-200.0,0.000199,7]
[357713244,1744380145194,-221.08998604,0.000199,3]
[357713245,1744380145226,-1371.4725,0.000199,2]
[357713246,1744380145259,-175.55755143,0.000199,2]
[357713247,1744380145292,-9269.59087736,0.000199,2]
[357713248,1744380145324,-283.35634731,0.000199,2]
[357713249,1744380145355,-994.83583224,0.000199,2]
[357713250,1744380145391,-559.7796064,0.000199,2]
[357713251,1744380145423,-159.83405484,0.00019973,2]
[357713252,1744380145456,-506.80863295,0.00019973,2]
[357713253,1744380145489,-2499.0,0.00019973,2]
[357713254,1744380145522,-500.0,0.00019973,2]
[357713255,1744380145555,-500.0,0.00019973,2]
[357713256,1744380145587,-162.14699852,0.00019973,2]
[357713257,1744380145619,-374.876347,0.00019973,2]
[357713258,1744380145651,-500.0,0.00019973,2]
[357713259,1744380145686,-500.0,0.00019973,2]
[357713260,1744380145719,-500.0,0.00019973,2]
[357713261,1744380145752,-967.1679087,0.00019986,2]
[357713262,1744380145784,-250.2925434,0.00019986,2]
[357713263,1744380145818,-249.4698474,0.00019986,2]
[357713264,1744380145851,-29910.0263793,0.00019986,2]
[357713265,1744380145884,-421.7131654,0.00019986,2]
[357713266,1744380145926,-7172.963791,0.00019986,2]
[357713267,1744380145961,-2494.753,0.00019986,2]
[357713268,1744380145995,-174.912,0.00019986,2]
[357713269,1744380146029,-13369.8184533,0.00019986,2]
[357713270,1744380146062,-151.0,0.00019988,2]
[357713271,1744380146096,-666.88592404,0.0001999,2]
[357713272,1744380146130,-666.88592404,0.0001999,2]
[357713273,1744380146164,-666.88592404,0.0001999,2]
[357713274,1744380146197,-310.49381882,0.00019999,2]
[357713275,1744380146229,-670.74437506,0.00019999,2]
[357713276,1744380146261,-1117.87658046,0.00019999,5]
[357713277,1744380146294,-1117.87658047,0.00019999,5]
[357713278,1744380146327,-151.0,0.00019999,2]
[357713279,1744380146361,-12828.49582919,0.00019999,2]
[357713280,1744380146396,-338303.69738276,0.0002,2]
[357713281,1744380147230,-181.77157691,0.0002,2]
[357713282,1744380188244,2978.406369,7.945e-05,2]
[357713283,1744380200859,511.832709,0.00033,120]
[357713284,1744380221624,200.0,0.00010959,2]
[357713285,1744380523504,161.82,0.00015404,2]
[357713292,1744380631513,-173.3,0.00019,2]
[357713293,1744380631523,-250.0,0.00019385,2]
[357713294,1744380631532,-200.0,0.00019394,2]
[357713295,1744380631542,-358.1271698,0.00019399,2]
[357713296,1744380631552,-257.98,0.00019422,2]
[357713297,1744380631565,-291.57,0.00019511,2]
[357713298,1744380631575,-408.88020981,0.000199,2]
[357713299,1744380631585,-2200.0198,0.000199,2]
[357713300,1744380631595,-1000.0,0.000199,2]
[357713301,1744380631604,-642.59329029,0.000199,2]
[357713302,1744380631616,-15416.79999999,0.000199,2]
[357713303,1744380631639,-1315.23010972,0.000199,2]
[357713304,1744380631649,-159.17867154,0.000199,2]
[357713305,1744380631658,-67.60121874,0.000199,2]
[357713341,1744380637484,-121.3030128,0.000199,2]
[357713343,1744380637494,-385.63493198,0.000199,2]
[357713347,1744380637824,-5794.0923196,0.000199,2]
[357713348,1744380637833,-221.08998602,0.000199,3]
[357713349,1744380637842,-264.91033849,0.000199,2]
[357713350,1744380637852,-363.63512475,0.00019973,2]
[357713351,1744380637862,-217.96902583,0.00019973,2]
[357713352,1744380637871,-434.62863859,0.00019973,2]
[357713353,1744380637880,-500.0,0.00019973,2]
[357713354,1744380637889,-2080.5774217,0.00019986,2]
[357713355,1744380637898,-8871.6079543,0.00019986,2]
[357713356,1744380637907,-795.050801,0.00019986,2]
[357713357,1744380637920,-176.6483124,0.00019986,2]
[357713358,1744380637929,-18529.3788534,0.00019986,2]
[357713359,1744380637938,-150.0,0.00019999,2]
[357713360,1744380637947,-150.0,0.00019999,2]
[357713361,1744380637956,-150.0,0.00019999,2]
[357713362,1744380637966,-150.0,0.00019999,2]
[357713363,1744380637976,-150.0,0.00019999,2]
[357713364,1744380637985,-150.0,0.00019999,2]
[357713365,1744380637994,-150.0,0.00019999,2]
[357713366,1744380638004,-155.45592761,0.00019999,2]
[357713367,1744380638014,-167.93843516,0.00019999,2]
[357713368,1744380638023,-166.21408295,0.00019999,2]
[357713369,1744380638032,-1993946.98475217,0.0002,2]
[357713370,1744380638044,-340033.78431041,0.0002,2]
[357713371,1744380638061,-1141.68616959,0.0002,2]
[357713372,1744380638074,-1864.3634011,0.0002,2]
[357713375,1744380638139,-41477.9578689,0.0002,2]
[357713377,1744380638151,-6982.03167095,0.0002,2]
[357713380,1744380638162,-349.60438867,0.0002,2]
[357713383,1744380638174,-701.5085753,0.0002,2]
[357713392,1744380640248,-0.03353226,0.000199,2]
[357713393,1744380640290,-182.46243861,0.000199,2]
[357713394,1744380640300,-373.18640426,0.000199,2]
[357713395,1744380640309,-1637.10303227,0.0002,2]
[357713396,1744380640321,-3502.03572241,0.0002,2]
[357713397,1744380640364,-26808.28157794,0.0002,2]
[357713398,1744380640376,-359966.60814595,0.0002,2]
[357713399,1744380640386,-150.0,0.0002,2]
[357713400,1744380640395,-566.61842696,0.0002,2]
[357713401,1744380640405,-150.0,0.0002,2]
[357713402,1744380640415,-150.0,0.0002,2]
[357713403,1744380640424,-150.0,0.0002,2]
[357713404,1744380640434,-5816.84402441,0.0002,2]
[357713405,1744380640444,-855.69233926,0.0002,2]
[357713406,1744380640685,-974.53582304,0.0002,2]
[357713407,1744380640706,-213.0,0.0002,20]
[357713408,1744380640716,-188.0,0.0002,2]
[357713409,1744380640726,-179.42,0.0002,2]
[357713410,1744380640736,-18543.17960687,0.0002,2]
[357713411,1744380640745,-2221927.15470057,0.0002,2]
[357713429,1744380644493,-424771.90023333,0.0002,2]
[357713430,1744380644504,-64026.04759584,0.0002,2]
[357713481,1744380646509,-82930.8368216,0.0002,2]
[357713484,1744380646523,-378213.43104011,0.0002,2]
[357713486,1744380646534,-395.66284012,0.0002,2]
[357713488,1744380646546,-827.52021216,0.0002,2]
[357713491,1744380646557,-25043.98820005,0.0002,2]
[357713574,1744380672850,-268.5953773,0.00019399,2]
[357713575,1744380718409,-201.446533,0.00019399,2]
[357713576,1744380752770,-150.0,0.00019511,2]
[357713577,1744380761456,-151.0848997,0.00019399,2]
[357713578,1744380781097,1123.37,0.00017577,2]
[357713579,1744380782132,-353.85298373,0.00019496,2]
[357713580,1744380818248,-151.0848998,0.00019399,2]
[357713581,1744380818271,-2.81804376,0.00019462,2]
[357713582,1744380821428,-151.0848998,0.00019462,2]
[357713583,1744380873318,495.78,0.00027425,30]
[357713584,1744381157105,200.0,0.00033,120]
[357713585,1744381173898,500.9,0.00018,2]
[357713586,1744381520656,4856.41121916,9e-05,2]
[357713587,1744381529007,849.03421608,0.00011,2]
[357713588,1744381537857,409.92443273,9e-05,2]
[357713590,1744381721231,1713.31644244,0.000149,2]
[357713617,1744381835815,-409.85,0.00018441,2]
[357713618,1744381835825,-211.18,0.00018454,2]
[357713619,1744381835835,-992.47,0.00018459,2]
[357713620,1744381835844,-250.0,0.00018473,2]
[357713621,1744381835855,-282.53,0.00019,2]
[357713622,1744381835865,-250.0,0.00019,2]
[357713623,1744381835875,-503.61,0.00019084,2]
[357713624,1744381835886,-200.0,0.00019089,7]
[357713625,1744381835896,-460.91803278,0.00019112,2]
[357713626,1744381835906,-410.2933,0.00019135,2]
[357713628,1744381835916,-200.0,0.00019151,2]
[357713630,1744381835925,-186.9,0.00019176,2]
[357713631,1744381835934,-186.9,0.00019181,2]
[357713632,1744381835946,-186.9,0.00019186,2]
[357713633,1744381835956,-186.9,0.00019191,2]
[357713634,1744381835966,-186.9,0.00019196,2]
[357713635,1744381835976,-186.9,0.00019201,2]
[357713636,1744381835985,-186.9,0.00019206,2]
[357713637,1744381835995,-186.9,0.00019211,2]
[357713638,1744381836004,-186.9,0.00019216,2]
[357713639,1744381836013,-186.9,0.00019221,2]
[357713641,1744381836022,-186.9,0.00019226,2]
[357713644,1744381836032,-101.51277976,0.00019229,2]
[357713647,1744381836043,-798.32798818,0.00019229,2]
[357713650,1744381836055,-100.15923206,0.00019229,2]
[357713651,1744381836064,-186.9,0.00019231,2]
[357713652,1744381836074,-2513.31484203,0.00019236,2]
[357713660,1744381837798,-6795.853198,0.00019236,2]
[357713661,1744381837810,-683.08049837,0.00019236,2]
[357713662,1744381837821,-362.51416737,0.00019236,2]
[357713663,1744381837832,-407.88201925,0.00019236,2]
[357713664,1744381837844,-354.72122644,0.00019236,2]
[357713665,1744381837855,-570.13742456,0.00019236,2]
[357713666,1744381837866,-5390.68405097,0.00019236,2]
[357713667,1744381837915,-261.92,0.00019236,2]
[357713668,1744381837927,-88.32160433,0.00019236,2]
[357713669,1744381837936,-186.9,0.00019236,2]
[357713670,1744381837946,-186.9,0.00019241,2]
[357713671,1744381837956,-186.9,0.00019247,2]
[357713672,1744381837966,-186.9,0.00019252,2]
[357713673,1744381837975,-186.9,0.00019257,2]
[357713674,1744381837985,-191.56,0.00019261,2]
[357713675,1744381837994,-166.75,0.00019261,2]
[357713676,1744381838003,-1308.90485108,0.00019261,2]
[357713677,1744381838019,-98.14514892,0.00019261,2]
[357713678,1744381838028,-186.9,0.00019262,2]
[357713679,1744381838038,-186.9,0.00019267,2]
[357713680,1744381838047,-186.9,0.00019272,2]
[357713681,1744381838057,-500.0,0.00019288,2]
[357713682,1744381838067,-1000.0,0.00019294,2]
[357713683,1744381838076,-23900.0,0.00019295,2]
[357713684,1744381838086,-400.29,0.00019339,2]
[357713685,1744381838096,-9999.99,0.00019339,2]
[357713686,1744381838105,-282.79,0.00019339,2]
[357713687,1744381838115,-332.27,0.00019339,2]
[357713688,1744381838124,-989.16,0.00019339,2]
[357713689,1744381838133,-9999.99,0.00019339,2]
[357713690,1744381838143,-150.99,0.00019339,2]
[357713691,1744381838152,-2188.66,0.00019339,2]
[357713692,1744381838161,-150.99,0.00019339,2]
[357713693,1744381838170,-499.99,0.00019339,2]
[357713694,1744381838179,-512.92,0.00019339,2]
[357713695,1744381838189,-8361.35,0.00019339,2]
[357713696,1744381838198,-484.87,0.00019339,2]
[357713697,1744381838207,-500.0,0.00019342,2]
[357713698,1744381838216,-151.0848998,0.00019399,2]
[357713699,1744381838226,-14602.61705644,0.00019462,2]
[357713700,1744381838235,-166.67,0.00019689,2]
[357713701,1744381838244,-1123.37,0.00019841,2]
[357713702,1744381838254,-445.83808588,0.000199,2]
[357713703,1744381838263,-442.88403516,0.000199,2]
[357713704,1744381838272,-284.37605279,0.000199,2]
[357713705,1744381838281,-446.83270842,0.000199,2]
[357713706,1744381838291,-166.06748051,0.000199,2]
[357713707,1744381838303,-221.08998602,0.000199,3]
[357713709,1744381838312,-5800.0,0.000199,2]
[357713711,1744381838321,-364.95840947,0.000199,2]
[357713712,1744381838330,-26211.79447757,0.000199,2]
[357713714,1744381838341,-188.90423153,0.000199,2]
[357713716,1744381838350,-4119.81816772,0.000199,2]
[357713718,1744381838360,-500.0,0.00019918,2]
[357713721,1744381838370,-500.0,0.00019973,2]
[357713724,1744381838381,-500.0,0.00019973,2]
[357713726,1744381838390,-500.0,0.00019973,2]
[357713728,1744381838399,-1995.802,0.00019986,2]